Workbook

Sheet Dateneingabe
B2: Bemessung für Querkraft nach EC2 bei rechteckigen Stahlbetonquerschnitten
J3: Version: | K3: 09-2021
B4: Teilsicherheitsbeiwert | G4: Beiwert für Bauteileigenschaften
F6: gC = | G6: =Datenbasis!E8 -> 1.5 | H6: Teilsicherheitsbeiwert für Beton | K6: [ 1 ]
F7: gS = | G7: =Datenbasis!F8 -> 1.15 | H7: Teilsicherheitsbeiwert für Betonstahl | K7: [ 1 ]
B9: Betonfestigkeitsklasse | G9: Materialparameter
E11: TRUE | F11: fcd = | G11: =Datenbasis!G58 -> 11.33333333 | H11: Bemessungswert für die Druckfestigkeit | K11: [N/mm²]
E12: FALSE | F12: fck = | G12: =Datenbasis!C22 -> 20 | H12: Zylinderdruckfestigkeit des Betons | K12: [N/mm²]
F13: fyd = | G13: =Datenbasis!E15 -> 434.7826087 | H13: Bemessungswert für die Streckgrenze | K13: [N/mm²]
B15: Betonstahlgüte | G15: Neigung der Querkraftbewehrung | J15: (gegen Stabachse)
B16: für | C16: Querkraft-
C17: bewehrung | F17: q = | J17: 90 | K17: [° ]
G18: geneigt (45°) | I18: lotrecht (90°)
D19: bw = | E19: 1200 | F19: [mm]
B20: Querschnittsangaben | D20: h = | E20: 320 | F20: [mm] | G20: Einwirkungen
D21: d = | E21: 260 | F21: [mm] | H21: VEd = | I21: 150 | J21: =IF(Datenbasis!$M$2,"[kN/m]","[kN]") -> [kN]
B22: =IF(Datenbasis!M2,"Plattenquerschnitt","Balkenquerschnitt") -> Balkenquerschnitt | D22: cv,l = | E22: 25 | F22: [mm] | H22: VEd,0 = | I22: 210 | J22: =IF(Datenbasis!$M$2,"[kN/m]","[kN]") -> [kN]
B23: bw / h = | C23: =IF(AND(E19/E20 >=4,NOT(Datenbasis!M2)), CONCATENATE(ROUND(E19/E20,2)," !!"), E19/E20) -> 3.75 | D23: Asl = | E23: 9.42 | F23: [cm²] | H23: NEd = | I23: 0 | J23: =IF(Datenbasis!$M$2,"[kN/m]","[kN]") -> [kN]

Sheet Ergebnisse
B2: =Dateneingabe!B2 -> Bemessung für Querkraft nach EC2 bei rechteckigen Stahlbetonquerschnitten
B4: Einwirkungen | G4: Angaben zur Bewehrung | L4: =IF(Datenbasis!$M$2,"Platte","") -> 
B6: VEd = | C6: =Datenbasis!K14/1000 -> 150 | D6: =IF(Datenbasis!$M$2,"[kN/m]","[kN]") -> [kN] | E6: =Datenbasis!M14/100 -> 1 | G6: asw,rqd = | H6: =Datenbasis!K49 -> 5.476190476 | I6: [cm²/m] | J6: Abstände in
B7: VEd,0 = | C7: =Datenbasis!K15/1000 -> 210 | D7: =IF(Datenbasis!$M$2,"[kN/m]","[kN]") -> [kN] | G7: asw,min = | H7: =Datenbasis!K52 -> 8.488008573 | I7: [cm²/m] | J7: Längsricht. = | K7: =Datenbasis!P31 -> 224 | L7: [mm]
E8: =Datenbasis!M16/100 -> 1 | G8: rw = | H8: =Datenbasis!K50 -> 0.4563492063 | I8: [%] | J8: Querricht. = | K8: =Datenbasis!R31 -> 320 | L8: [mm]
B9: NEd = | C9: =-Datenbasis!K16/1000 -> 0 | D9: =IF(Datenbasis!$M$2,"[kN/m]","[kN]") -> [kN] | G9: rw,min = | H9: =Datenbasis!K51 -> 0.7073340477 | I9: [%] | J9: bei Schräg. = | K9: =Datenbasis!Q31 -> 160 | L9: [mm]
B11: Beanspruchung und Bauteilwiderstände | G11: Geometrie des FW-Modells zur Querkraftabtragung | L11: =IF(Datenbasis!$M$2,"Platte","") -> 
H23: =IF(J30<H30,"Flacherer Winkel unzulässig",IF(J30>45,"Winkel über 45 Grad nur in Ausnahmefällen","")) -> 
F27: =Datenbasis!M8/100 -> 1 | H27: Grenzwert der | J27: gewählte
B28: Neigung der | E28: Bewehrungsgrad | H28: Neigung der | J28: <= Neigung der
B29: Querkraft- | E29: in Längsrichtung | H29: Druckstrebe in [°] | J29: Druckstrebe in [°]
B30: bewehrung | C30: =Datenbasis!K22 -> 90 | D30: [°] | E30: =Datenbasis!K8 -> 9.42 | F30: [cm²] | H30: =Datenbasis!L25 -> 18.43494882 | J30: 18.43494882

Sheet Datenbasis
B1: Betonart | C1: Stahllinie | J1: Querschnitt | K1: in [cm] | L1: Lage | M1: in [cm]
B2: 1 | C2: =IF(C4,1,2) -> 2 | J2: b_w = | K2: =Dateneingabe!E19 -> 1200 | L2: [mm] | M2: Falsch
B3: Normalb. = 1 | C3: Lin. I/II = 1/2 | J3: h = | K3: =Dateneingabe!E20 -> 320 | L3: [mm] | M3: Platte ?
B4: Leichtb. = 2 | C4: FALSE | J4: d = | K4: =Dateneingabe!E21 -> 260 | L4: [mm]
J5: c_v,l = | K5: =Dateneingabe!E22 -> 25 | L5: [mm]
B6: =SucheZeile(F6,B10:B11) -> 1 | C6: Kombinationsauswahl | F6: Grundkombination | J6: 0,9 * d = | K6: =0.9*K4 -> 234 | L6: [mm] | M6: Manipulat.
B7: Kombination | E7: gam_c | F7: gam_s | J7: z = | K7: =MIN(K6,MAX(K4-2*K5,K4-K5-30)) -> 210 | L7: [mm]
B8: =INDEX(B10:B11,$B$6) -> Grundkombination | E8: =INDEX(E10:E11,$B$6) -> 1.5 | F8: =INDEX(F10:F11,$B$6) -> 1.15 | J8: A_sl = | K8: =Dateneingabe!E23*M8/100 -> 9.42 | L8: [cm²] | M8: 100
B9: Kombination | E9: gam_c | F9: gam_s | J9: b_w / h = | K9: =K2/K3 -> 3.75 | L9: [1] | M9: =ROUND(Datenbasis!K9,3)*1000 -> 3750
B10: Grundkombination | E10: 1.5 | F10: 1.15
B11: Außergewöhnl. Kombination | E11: 1.3 | F11: 1
B13: =SucheZeile(E13,B17:B18) -> 1 | C13: Stahlparameter | E13: B 500 SA | F13: =IF(C2=2,"f_td > f_yd","f_yd = f_td") -> f_td > f_yd | G13: 20000 | H13: 0.025 | J13: Einwirkungen | M13: Manipulat.
B14: Stahlgüte | C14: f_yk | D14: f_tk | E14: f_yd | F14: f_td | G14: eps_yk | H14: eps_yd | J14: V_Ed = | K14: =Dateneingabe!I21*1000*Datenbasis!M14/100 -> 150000 | L14: [N] bzw. [N/m] | M14: 100
B15: =INDEX(B17:B18,$B$13) -> B 500 SA | C15: =INDEX(C17:C18,$B$13) -> 500 | D15: =INDEX(D17:D18,$B$13) -> 525 | E15: =INDEX(E17:E18,$B$13) -> 434.7826087 | F15: =IF(C2=2,INDEX(F17:F18,$B$13),E15) -> 456.5217391 | G15: =INDEX(G17:G18,$B$13) -> 0.025 | H15: =INDEX(H17:H18,$B$13) -> 0.02173913043 | J15: V_Ed,0 = | K15: =Dateneingabe!I22*1000*Datenbasis!M15/100 -> 210000 | L15: [N] bzw. [N/m] | M15: =M14 -> 100
B16: Stahlgüte | C16: f_yk | D16: f_tk | E16: f_yd | F16: f_td | G16: eps_yk | H16: eps_yd | J16: N_Ed = | K16: =-Dateneingabe!I23*1000*Datenbasis!M16/100 -> 0 | L16: [N] bzw. [N/m] | M16: 100
B17: B 500 SA | C17: 500 | D17: 525 | E17: =C17/F8 -> 434.7826087 | F17: =D17/F8 -> 456.5217391 | G17: =C17/G13 -> 0.025 | H17: =E17/G13 -> 0.02173913043 | L17: (Druckkr. = positiv)
B18: B 500 MA | C18: 500 | D18: 525 | E18: =C18/F8 -> 434.7826087 | F18: =D18/F8 -> 456.5217391 | G18: =C18/G13 -> 0.025 | H18: =E18/G13 -> 0.02173913043
B20: =SucheZeile(G20,B24:B38) -> 3 | C20: Parabel-Rechteck-Diagramm (Normalbeton) | G20: C 20/25 | H20: 0.85 | J20: Einstellungen | O20: Hinweise zur Bewehrungsführung
B21: Betongüte | C21: f_ck | D21: eps_c2 | E21: eps_c2u | F21: n | G21: f_cd | J21: Neigung der Querkraftbewehrung | O21: Querkraft- | P21: V_Ed / V_Rd,max = | R21: =K14/K47 -> 0.233426704
B22: =INDEX(B24:B38,$B$20) -> C 20/25 | C22: 20 | D22: -2 | E22: -3.5 | F22: 2 | G22: 11.33333333 | H22: 2200 | J22: alpha = | K22: =Dateneingabe!J17 -> 90 | L22: tan = | M22: =IF(K23<0.00001,10000000,1/K23) -> 10000000 | O22: ausnutzung | Q22: 0.3 | R22: =IF(AND($R$21>0,$R$21<=Q22),1,0) -> 1
B23: Betongüte | C23: f_ck | D23: eps_c2 | E23: eps_c2u | F23: n | G23: f_cd | J23: cot = | K23: =1/TAN(K22*PI()/180) -> 6.125742275e-17 | L23: sin = | M23: =SIN(K22*PI()/180) -> 1 | Q23: 0.6 | R23: =IF(AND($R$21>Q22,$R$21<=Q23),2,0) -> 0
B24: C 12/15 | C24: 12 | D24: -2 | E24: -3.5 | F24: 2 | G24: =C24/$E$8*$H$20 -> 6.8 | J24: Neigung der Druckstrebe | Q24: 1 | R24: =IF(AND($R$21>Q23,$R$21<=Q24),3,0) -> 0
B25: C 16/20 | C25: 16 | D25: -2 | E25: -3.5 | F25: 2 | G25: =C25/$E$8*$H$20 -> 9.066666667 | J25: theta = | K25: =ATAN(1/K45)*180/PI() -> 18.43494882 | L25: =ATAN(1/K44)*180/PI() -> 18.43494882 | M25: Grenzen | Q25: Bereich = | R25: =MAX(R22:R24) -> 1
B26: C 20/25 | C26: 20 | D26: -2 | E26: -3.5 | F26: 2 | G26: 11.33333333 | J26: cot = | K26: =1/TAN(K25*PI()/180) -> 3 | L26: max cot = | M26: =IF(B2=1,3,2) -> 3
B27: C 25/30 | C27: 25 | D27: -2 | E27: -3.5 | F27: 2 | G27: 14.16666667 | J27: tan = | K27: =1/K26 -> 0.3333333333 | L27: min cot = | M27: 1 | O27: Abstände | P27: .. in Längsrich. | Q27: .. für Schrägst. | R27: .. in Querricht.
B28: C 30/37 | C28: 30 | D28: -2 | E28: -3.5 | F28: 2 | G28: 17 | O28: 1 | P28: =IF(C58<=50,MIN(0.7*K3,300),MIN(0.7*K3,200)) -> 224 | Q28: =0.5*K3*(1+K23) -> 160 | R28: =IF(C58<=50,MIN(K3,800),MIN(K3,600)) -> 320
B29: C 35/45 | C29: 35 | D29: -2 | E29: -3.5 | F29: 2 | G29: 19.83333333 | J29: Mittlere Betonzugfestigkeit | O29: 2 | P29: =IF(C58<=50,MIN(0.5*K3,300),MIN(0.5*K3,200)) -> 160 | Q29: =0.5*K3*(1+K23) -> 160 | R29: =IF(C58<=50,MIN(K3,600),MIN(K3,400)) -> 320
B30: C 40/50 | C30: 40 | D30: -2 | E30: -3.5 | F30: 2 | G30: 22.66666667 | J30: f_ctm = | K30: =IF(C58<55,0.3*C58^(2/3),2.12*LN(1+(C58+8)/10)) -> 2.210418899 | L30: [N/mm²] | O30: 3 | P30: =MIN(0.25*K3,200) -> 80 | Q30: =0.5*K3*(1+K23) -> 160 | R30: =IF(C58<=50,MIN(K3,600),MIN(K3,400)) -> 320
B31: C 45/55 | C31: 45 | D31: -2 | E31: -3.5 | F31: 2 | G31: 25.5 | J31: allgem. rho = | K31: =0.16*K30/C15*1000 -> 0.7073340477 | L31: [o/oo] | P31: =INDEX(P28:P30,$R$25) -> 224 | Q31: =INDEX(Q28:Q30,$R$25) -> 160 | R31: =INDEX(R28:R30,$R$25) -> 320
B32: C 50/60 | C32: 50 | D32: -2 | E32: -3.5 | F32: 2 | G32: 28.33333333 | O32: Abmind. = | P32: =IF(K49=0,0,0.6) -> 0.6 | R32: für Mindest-
B33: C 55/67 | C33: 55 | D33: -2.2 | E33: -3.1 | F33: 1.75 | G33: 31.16666667 | J33: Hilfsgrößen | O33: Hilfswert = | P33: =1-(K9-4)*(1-P32) -> 1.1 | R33: querkr.-beweh.
B34: C 60/75 | C34: 60 | D34: -2.3 | E34: -2.9 | F34: 1.6 | G34: 34 | J34: C_Rd,c = | K34: =0.15/E8 -> 0.1 | L34: [1] | O34: Multiplikator | P34: =IF(P33>1,1,IF(P33<0,0,P33)) -> 1 | Q34: für Mindestbew.
B35: C 70/85 | C35: 70 | D35: -2.4 | E35: -2.7 | F35: 1.45 | G35: 39.66666667 | J35: k = | K35: =MIN(2,1+(200/K4)^0.5) -> 1.877058019 | L35: [1] | M35: <= 2,0
B36: C 80/95 | C36: 80 | D36: -2.5 | E36: -2.6 | F36: 1.4 | G36: 45.33333333 | J36: sigm_cd = | K36: =MIN(K16/K2/K3,0.2*G58) -> 0 | L36: [N/mm²] | M36: >0 (Druck)
B37: C 90/105 | C37: 90 | D37: -2.6 | E37: -2.6 | F37: 1.4 | G37: 51 | J37: rho_l = | K37: =100*MIN(100*K8/K2/K4,0.02) -> 0.3019230769 | L37: [%] | M37: <= 2 %
B38: C 100/115 | C38: 100 | D38: -2.6 | E38: -2.6001 | F38: 1.4 | G38: 56.66666667 | J38: Vorfaktor = | K38: =IF(K4<=600,0.0525,IF(K4>800,0.0375,0.0975-0.015/200*K4)) -> 0.0525 | L38: [1]
J39: v_min = | K39: =K38/E8*K35^1.5*C58^0.5 -> 0.4025312365 | L39: [N/mm²]
B40: =SucheZeile(G40,B44:B54) -> 3 | C40: Parabel-Rechteck-Diagramm (Leichtbeton) | G40: LC 20/22 | H40: 0.75 | J40: V_Rd,c = | K40: =K2*K4*MAX(K34*K35*(K37*C58)^(1/3)+0.12*K36,K39+0.12*K36) -> 125589.7458 | L40: [N] | O40: Grafik 2
B41: Betongüte | C41: f_ck | D41: eps_c2 | E41: eps_c2u | F41: n | G41: f_cd | H41: rho | O41: PlotArea
B42: =INDEX(B44:B54,$B$40) -> LC 20/22 | C42: 20 | D42: -2 | E42: -2.640909091 | F42: 2 | G42: 1 | H42: 1300 | J42: V_Rd,cc = | K42: =0.24*C58^(1/3)*(1-1.2*K36/G58)*K2*K7 -> 164167.9775 | L42: [N] | O42: Breite | P42: Höhe
B43: Betongüte | C43: f_ck | D43: eps_c2 | E43: eps_c2u | F43: n | G43: f_cd | H43: rho | J43: cottheta = | K43: =IF(M43=0,M26,(1.2+1.4*K36/G58)/(1-K42/K15)) -> 5.498339065 | L43: (kalkuliert) | M43: =IF(K42<=K15,1,0) -> 1 | O43: =4*K6/10 -> 93.6 | P43: =K3/10 -> 32
B44: LC 12/13 | C44: 12 | D44: -2 | E44: =-3.5*(0.4+0.6*H44/2200) -> -2.545454545 | F44: 2 | G44: =C44/10/$E$8*$H$40 -> 0.6 | H44: 1200 | J44: cottheta = | K44: =IF(K43>M26,M26,IF(K43<M27,M27,K43)) -> 3 | L44: (maßgebend) | O44: Unteres Zugband | Q44: Oberer Druckgurt
B45: LC 16/18 | C45: 16 | D45: -2 | E45: =-3.5*(0.4+0.6*H45/2200) -> -2.545454545 | F45: 2 | G45: 0.8 | H45: 1200 | J45: cottheta = | K45: =1/TAN(Ergebnisse!J30*PI()/180) -> 3 | L45: (gewählt) | O45: 0 | P45: =(K3-K4)/10 -> 6 | Q45: 0 | R45: =(K3-K4+K7)/10 -> 27
B46: LC 20/22 | C46: 20 | D46: -2 | E46: -2.640909091 | F46: 2 | G46: 1 | H46: 1300 | J46: v_1 = | K46: =0.75*MIN(1,1.1-C58/500) -> 0.75 | O46: =O43 -> 93.6 | P46: =P45 -> 6 | Q46: =O43 -> 93.6 | R46: =R45 -> 27
B47: LC 25/28 | C47: 25 | D47: -2 | E47: -2.640909091 | F47: 2 | G47: 1.25 | H47: 1300 | J47: V_Rd,max = | K47: =K2*K7*K46*G58*(K26+K23)/(1+K26*K26) -> 642600 | L47: [N] | O47: Diagonale Druckstrebe 1 | Q47: Bügel/Schrägaufbiegung 1
B48: LC 30/33 | C48: 30 | D48: -2 | E48: -2.736363636 | F48: 2 | G48: 1.5 | H48: 1400 | J48: V_Rd,s = | K48: =IF(K14<K40,0,K14) -> 150000 | L48: [N] | O48: 0 | P48: =P45 -> 6 | Q48: =O49 -> 63 | R48: =IF(AND(M2,K48<K40),P48,P49) -> 27
B49: LC 35/38 | C49: 35 | D49: -2 | E49: -2.831818182 | F49: 2 | G49: 1.75 | H49: 1500 | J49: a_sw = | K49: =10*K48/(E15*K7*(K26+K23)*M23) -> 5.476190476 | L49: [cm²/m] | O49: =K7/K27/10 -> 63 | P49: =K7/10+P48 -> 27 | Q49: =O49+0.1*K7/M22 -> 63.0000021 | R49: =P48 -> 6
B50: LC 40/44 | C50: 40 | D50: -2 | E50: -2.831818182 | F50: 2 | G50: 2 | H50: 1500 | J50: rho_w = | K50: =100*K49/K2/M23 -> 0.4563492063 | L50: [%] | O50: Diagonale Druckstrebe 2 | Q50: Bügel/Schrägaufbiegung 2
B51: LC 45/50 | C51: 45 | D51: -2 | E51: -2.927272727 | F51: 2 | G51: 2.25 | H51: 1600 | J51: rho_w,min = | K51: =K31*P34 -> 0.7073340477 | L51: [%] | O51: =Q49 -> 63.0000021 | P51: =R49 -> 6 | Q51: =O52 -> 126.0000021 | R51: =R48 -> 27
B52: LC 50/55 | C52: 50 | D52: -2 | E52: -2.927272727 | F52: 2 | G52: 2.5 | H52: 1600 | J52: a_sw,min = | K52: =K51*K2*M23*P34/100 -> 8.488008573 | L52: [cm²/m] | O52: =O51+O49 -> 126.0000021 | P52: =P49 -> 27 | Q52: =O52+0.1*K7/M22 -> 126.0000042 | R52: =P51 -> 6
B53: LC 55/60 | C53: 55 | D53: -2.03 | E53: =-3.1*(0.4+0.6*H53/2200) -> -2.677272727 | F53: 1.75 | G53: 2.75 | H53: 1700 | O53: Diagonale Druckstrebe 3 | Q53: Bügel/Schrägaufbiegung 3
B54: LC 60/66 | C54: 60 | D54: -2.06 | E54: =-2.9*(0.4+0.6*H54/2200) -> -2.583636364 | F54: 1.6 | G54: 3 | H54: 1800 | J54: Grafik 1 | K54: [kN] | L54: [kN] | M54: Skalierung | O54: =Q52 -> 126.0000042 | P54: =R52 -> 6 | Q54: =O55 -> 189.0000042 | R54: =R51 -> 27
J55: V_Ed | K55: =K14/1000 -> 150 | M55: 1 | O55: =O54+O49 -> 189.0000042 | P55: =P52 -> 27 | Q55: =O55+0.1*K7/M22 -> 189.0000063 | R55: =P54 -> 6
B56: =B2 -> 1 | C56: Betonart (Normal = 1; Leicht = 2) | J56: V_Rd,c | K56: =K40/1000 -> 125.5897458 | M56: 250 | O56: Diagonale Druckstrebe 4 | Q56: Bügel/Schrägaufbiegung 4
B57: Betonart | C57: f_ck | D57: eps_c2 | E57: eps_c2u | F57: n | G57: f_cd | H57: rho | J57: V_Rd,s | K57: =K48/1000 -> 150 | L57: =K52*E15*K7*(K26+K23)*M23/100/100 -> 232.4976261 | M57: =M55*M56 -> 250 | O57: =Q55 -> 189.0000063 | P57: =R55 -> 6 | Q57: =O58 -> 252.0000063 | R57: =R54 -> 27
B58: =IF($B$2=1,B22,B42) -> C 20/25 | C58: 20 | D58: -2 | E58: -3.5 | F58: 2 | G58: 11.33333333 | H58: 2200 | J58: V_Rd,max | K58: =K47/1000 -> 642.6 | O58: =O57+O49 -> 252.0000063 | P58: =P55 -> 27 | Q58: =O58+0.1*K7/M22 -> 252.0000084 | R58: =P57 -> 6
